fUST/lending_fUST_20250725
["ID","MTS","AMOUNT","RATE_DAILY","PERIOD"]
[374609326,1753374640780,-460.0,0.0002049,2]
[374609327,1753374640790,-460.0,0.0002049,2]
[374609328,1753374640799,-460.0,0.0002049,2]
[374609329,1753374640809,-1451.27,0.0002049,2]
[374609330,1753374640819,-575.82,0.0002049,2]
[374609331,1753374640828,-460.0,0.0002049,2]
[374609332,1753374640838,-371.99443675,0.0002049,2]
[374609333,1753374640847,-460.0,0.00020492,2]
[374609334,1753374640857,-460.0,0.00020492,2]
[374609335,1753374640866,-460.0,0.00020492,2]
[374609336,1753374640877,-2683.65,0.00020492,2]
[374609337,1753374640887,-655.27,0.00020492,2]
[374609338,1753374640898,-460.0,0.00020492,2]
[374609339,1753374640907,-460.0,0.00020492,2]
[374609340,1753374640917,-465.56793574,0.00020492,2]
[374609341,1753374640927,-460.0,0.00020493,2]
[374609342,1753374640936,-460.0,0.00020493,2]
[374609343,1753374640946,-460.0,0.00020493,2]
[374609344,1753374640956,-460.0,0.00020493,2]
[374609345,1753374640965,-460.0,0.00020493,2]
[374609346,1753374640974,-666.35,0.00020493,2]
[374609347,1753374640983,-460.0,0.00020493,2]
[374609348,1753374640993,-442.85117061,0.00020493,2]
[374609349,1753374641002,-460.0,0.00020493,2]
[374609350,1753374641012,-227.63,0.00020493,2]
[374609351,1753374641021,-460.0,0.00020493,2]
[374609352,1753374641040,-460.0,0.00020493,2]
[374609353,1753374641051,-460.0,0.00020493,2]
[374609354,1753374641061,-460.0,0.00020493,2]
[374609355,1753374641071,-3280.61,0.00020493,2]
[374609356,1753374641081,-460.0,0.00020493,2]
[374609357,1753374641090,-460.0,0.00020493,2]
[374609358,1753374641101,-460.0,0.00020493,2]
[374609359,1753374641111,-460.0,0.00020493,2]
[374609360,1753374641121,-1520.37,0.00020494,2]
[374609361,1753374641131,-258.48309645,0.00020521,3]
[374609362,1753374641141,-500.0,0.00020547,2]
[374609363,1753374641151,-500.0,0.00020547,2]
[374609364,1753374641161,-3609.07108579,0.00020564,2]
[374609365,1753374641171,-500.0,0.00020687,2]
[374609366,1753374641180,-500.0,0.00020687,2]
[374609367,1753374641190,-500.0,0.00020687,2]
[374609368,1753374641200,-380.40511553,0.00020719,2]
[374609369,1753374641210,-291.79790658,0.00020719,2]
[374609370,1753374641219,-503.50332979,0.00020719,2]
[374609371,1753374641229,-258.48309645,0.00020728,3]
[374609372,1753374641239,-500.0,0.00020734,2]
[374609373,1753374641248,-304.97620169,0.00020734,2]
[374609374,1753374641258,-504.30457904,0.00020734,2]
[374609375,1753374641267,-460.0,0.00020764,2]
[374609376,1753374641277,-460.0,0.00020764,2]
[374609377,1753374641287,-460.0,0.00020764,2]
[374609378,1753374641297,-718.97,0.00020764,2]
[374609379,1753374641307,-460.0,0.00020764,2]
[374609380,1753374641316,-580.89,0.00020764,2]
[374609381,1753374641326,-460.0,0.00020764,2]
[374609382,1753374641335,-460.0,0.00020764,2]
[374609383,1753374641345,-1451.27,0.00020764,2]
[374609384,1753374641354,-575.82,0.00020764,2]
[374609385,1753374641364,-460.0,0.00020764,2]
[374609386,1753374641376,-460.0,0.00020766,2]
[374609387,1753374641386,-460.0,0.00020766,2]
[374609388,1753374641395,-565.95471825,0.00020766,2]
[374609389,1753374641405,-460.0,0.00020766,2]
[374609390,1753374641415,-466.1381054,0.00020766,2]
[374609391,1753374641425,-460.0,0.00020766,2]
[374609392,1753374641435,-215.92478924,0.00020766,2]
[374609393,1753374641445,-460.0,0.00020766,2]
[374609394,1753374641454,-415.74493917,0.00020766,2]
[374609395,1753374641464,-460.0,0.00020766,2]
[374609396,1753374641474,-460.0,0.00020766,2]
[374609397,1753374641484,-460.0,0.00020766,2]
[374609398,1753374641494,-310.55750851,0.00020766,2]
[374609399,1753374641503,-460.0,0.00020766,2]
[374609400,1753374641513,-460.0,0.00020766,2]
[374609401,1753374641523,-460.0,0.00020766,2]
[374609402,1753374641532,-460.0,0.00020766,2]
[374609403,1753374641542,-460.0,0.00020766,2]
[374609404,1753374641551,-460.0,0.00020766,2]
[374609405,1753374641561,-460.0,0.00020766,2]
[374609406,1753374641570,-460.0,0.00020766,2]
[374609407,1753374641580,-460.0,0.00020766,2]
[374609408,1753374641590,-460.0,0.00020766,2]
[374609409,1753374641601,-552.96923944,0.00020766,2]
[374609410,1753374641610,-460.0,0.00020766,2]
[374609411,1753374641619,-460.0,0.00020766,2]
[374609412,1753374641631,-460.0,0.00020766,2]
[374609413,1753374641641,-460.0,0.00020766,2]
[374609414,1753374641652,-460.0,0.00020766,2]
[374609415,1753374641668,-420.77053511,0.00020766,2]
[374609416,1753374641678,-460.0,0.00020766,2]
[374609417,1753374641688,-460.0,0.00020766,2]
[374609418,1753374641699,-603.29,0.00020766,2]
[374609419,1753374641709,-2683.65,0.00020766,2]
[374609420,1753374641720,-655.27,0.00020766,2]
[374609421,1753374641740,-460.0,0.00020766,2]
[374609422,1753374641754,-460.0,0.00020766,2]
[374609423,1753374641768,-460.0,0.00020766,2]
[374609424,1753374641781,-460.0,0.00020767,2]
[374609425,1753374641795,-460.0,0.00020767,2]
[374609426,1753374641807,-460.0,0.00020767,2]
[374609427,1753374641819,-460.0,0.00020767,2]
[374609428,1753374641829,-666.35,0.00020767,2]
[374609429,1753374641841,-460.0,0.00020767,2]
[374609430,1753374641854,-460.0,0.00020767,2]
[374609431,1753374641866,-460.0,0.00020767,2]
[374609432,1753374641880,-460.0,0.00020767,2]
[374609433,1753374641892,-460.0,0.00020767,2]
[374609434,1753374641904,-3280.61,0.00020767,2]
[374609435,1753374641916,-460.0,0.00020767,2]
[374609436,1753374641929,-460.0,0.00020767,2]
[374609437,1753374641940,-154.12427463,0.00020767,2]
[374609438,1753374641953,-460.0,0.00020767,2]
[374609439,1753374641965,-1520.37,0.00020768,2]
[374609440,1753374641977,-500.0,0.00020786,2]
[374609441,1753374641988,-326.97247272,0.00020786,2]
[374609442,1753374642002,-160.0,0.00020802,2]
[374609443,1753374642013,-476.79463412,0.00020802,2]
[374609444,1753374642025,-215.88777038,0.00020802,2]
[374609445,1753374642036,-12624.810388,0.00020802,2]
[374609446,1753374642048,-160.0,0.00020802,2]
[374609447,1753374642061,-214.7213231,0.00020805,2]
[374609448,1753374642072,-500.0,0.00020806,2]
[374609449,1753374642083,-3609.07108579,0.00020857,2]
[374609450,1753374642096,-500.01914078,0.00020894,2]
[374609451,1753374642112,-551.68715773,0.00020894,2]
[374609452,1753374642124,-258.48309645,0.00020934,4]
[374609453,1753374642136,-500.0,0.0002102,2]
[374609454,1753374642147,-500.0,0.0002102,2]
[374609455,1753374642159,-500.0,0.0002102,2]
[374609456,1753374642169,-460.0,0.00021038,2]
[374609457,1753374642179,-501.38177271,0.00021038,2]
[374609458,1753374642189,-460.0,0.00021038,2]
[374609459,1753374642200,-718.97,0.00021038,2]
[374609460,1753374642212,-460.0,0.00021038,2]
[374609461,1753374642222,-580.89,0.00021038,2]
[374609462,1753374642234,-460.0,0.00021038,2]
[374609463,1753374642245,-460.0,0.00021038,2]
[374609464,1753374642257,-1451.27,0.00021038,2]
[374609465,1753374642267,-575.82,0.00021038,2]
[374609466,1753374642279,-460.0,0.00021038,2]
[374609467,1753374642290,-460.0,0.0002104,2]
[374609468,1753374642301,-460.0,0.0002104,2]
[374609469,1753374642313,-460.0,0.0002104,2]
[374609470,1753374642324,-460.0,0.0002104,2]
[374609471,1753374642336,-460.0,0.0002104,2]
[374609472,1753374642347,-460.0,0.0002104,2]
[374609473,1753374642358,-202.86026692,0.0002104,2]
[374609474,1753374642370,-460.0,0.0002104,2]
[374609475,1753374642382,-460.0,0.0002104,2]
[374609476,1753374642392,-460.0,0.0002104,2]
[374609477,1753374642402,-460.0,0.0002104,2]
[374609478,1753374642412,-460.0,0.0002104,2]
[374609479,1753374642422,-460.0,0.0002104,2]
[374609480,1753374642432,-460.0,0.0002104,2]
[374609481,1753374642442,-2683.65,0.0002104,2]
[374609482,1753374642453,-655.27,0.0002104,2]
[374609483,1753374642464,-460.0,0.0002104,2]
[374609484,1753374642476,-511.9,0.0002104,2]
[374609485,1753374642488,-460.0,0.00021041,2]
[374609486,1753374642499,-460.0,0.00021041,2]
[374609487,1753374642511,-259.50358371,0.00021041,2]
[374609488,1753374642521,-460.0,0.00021041,2]
[374609489,1753374642532,-666.35,0.00021041,2]
[374609490,1753374642542,-460.0,0.00021041,2]
[374609491,1753374642552,-538.26644076,0.00021041,2]
[374609492,1753374642563,-460.0,0.00021041,2]
[374609493,1753374642574,-457.34884386,0.00021041,2]
[374609494,1753374642586,-460.0,0.00021041,2]
[374609495,1753374642598,-3280.61,0.00021041,2]
[374609496,1753374642608,-460.0,0.00021041,2]
[374609497,1753374642618,-460.0,0.00021041,2]
[374609498,1753374642630,-460.0,0.00021041,2]
[374609499,1753374642642,-1520.37,0.00021042,2]
[374609500,1753374642654,-258.48309645,0.00021141,4]
[374609501,1753374642667,-3609.07108579,0.00021157,2]
[374609502,1753374642678,-1000.0,0.00021235,2]
[374609503,1753374642689,-1000.0,0.00021235,2]
[374609504,1753374642702,-550.356,0.00021296,2]
[374609505,1753374642713,-460.0,0.00021312,2]
[374609506,1753374642724,-718.97,0.00021312,2]
[374609507,1753374642735,-460.0,0.00021312,2]
[374609508,1753374642747,-580.89,0.00021312,2]
[374609509,1753374642758,-460.0,0.00021312,2]
[374609510,1753374642769,-460.0,0.00021312,2]
[374609511,1753374642779,-1451.27,0.00021312,2]
[374609512,1753374642791,-575.82,0.00021312,2]
[374609513,1753374642801,-460.0,0.00021312,2]
[374609514,1753374642811,-460.0,0.00021314,2]
[374609515,1753374642822,-460.0,0.00021314,2]
[374609516,1753374642834,-532.5533407,0.00021314,2]
[374609517,1753374642845,-460.0,0.00021314,2]
[374609518,1753374642858,-460.0,0.00021314,2]
[374609519,1753374642869,-460.0,0.00021314,2]
[374609520,1753374642884,-460.0,0.00021314,2]
[374609521,1753374642895,-2683.65,0.00021314,2]
[374609522,1753374642905,-655.27,0.00021314,2]
[374609523,1753374642917,-460.0,0.00021314,2]
[374609524,1753374642929,-460.0,0.00021315,2]
[374609525,1753374642940,-666.35,0.00021315,2]
[374609526,1753374642951,-460.0,0.00021315,2]
[374609527,1753374642962,-460.0,0.00021315,2]
[374609528,1753374642973,-460.0,0.00021315,2]
[374609529,1753374642986,-3280.61,0.00021315,2]
[374609530,1753374642996,-460.0,0.00021315,2]
[374609531,1753374643007,-460.0,0.00021315,2]
[374609532,1753374643019,-460.0,0.00021315,2]
[374609533,1753374643031,-1520.37,0.00021316,2]
[374609534,1753374643042,-258.48309645,0.00021348,5]
[374609535,1753374643053,-164.2445456,0.00021355,2]
[374609536,1753374643064,-3609.07108579,0.00021486,2]
[374609538,1753374643075,-258.48309645,0.00021555,5]
[374609539,1753374643086,-460.0,0.00021586,2]
[374609540,1753374643097,-718.97,0.00021586,2]
[374609541,1753374643108,-460.0,0.00021586,2]
[374609542,1753374643119,-580.89,0.00021586,2]
[374609543,1753374643132,-460.0,0.00021586,2]
[374609544,1753374643143,-460.0,0.00021586,2]
[374609545,1753374643155,-1451.27,0.00021586,2]
[374609546,1753374643166,-575.82,0.00021586,2]
[374609547,1753374643178,-460.0,0.00021586,2]
[374609548,1753374643188,-460.0,0.00021588,2]
[374609550,1753374643200,-460.0,0.00021588,2]
[374609551,1753374643210,-2683.65,0.00021588,2]
[374609553,1753374643221,-655.27,0.00021588,2]
[374609555,1753374643232,-460.0,0.00021588,2]
[374609556,1753374643243,-460.0,0.00021589,2]
[374609557,1753374643254,-666.35,0.00021589,2]
[374609559,1753374643264,-460.0,0.00021589,2]
[374609560,1753374643275,-460.0,0.00021589,2]
[374609561,1753374643285,-460.0,0.00021589,2]
[374609562,1753374643296,-3280.61,0.00021589,2]
[374609563,1753374643306,-460.0,0.00021589,2]
[374609566,1753374643463,-460.0,0.00021589,2]
[374609567,1753374643481,-460.0,0.00021589,2]
[374609568,1753374643490,-1520.37,0.0002159,2]
[374609569,1753374643500,-420.0,0.0002171,2]
[374609570,1753374643510,-180.0,0.00021711,2]
[374609571,1753374643519,-194.0,0.00021711,2]
[374609572,1753374643528,-4374.52954307,0.00021716,2]
[374609573,1753374643538,-530.36982302,0.0002176,2]
[374609574,1753374643548,-258.48309645,0.00021762,5]
[374609575,1753374643557,-1272.0,0.00021815,2]
[374609576,1753374643566,-460.0,0.0002186,2]
[374609577,1753374643576,-718.97,0.0002186,2]
[374609578,1753374643585,-298.6,0.0002186,2]
[374609580,1753374643595,-580.89,0.0002186,2]
[374609582,1753374643605,-207.57411445,0.0002186,2]
[374609587,1753374643706,-252.42588555,0.0002186,2]
[374609588,1753374643717,-460.0,0.0002186,2]
[374609589,1753374643728,-1451.27,0.0002186,2]
[374609590,1753374643738,-575.82,0.0002186,2]
[374609591,1753374643747,-460.0,0.0002186,2]
[374609592,1753374643758,-460.0,0.00021862,2]
[374609593,1753374643767,-460.0,0.00021862,2]
[374609594,1753374643776,-460.0,0.00021862,2]
[374609595,1753374643786,-460.0,0.00021862,2]
[374609596,1753374643795,-1443.57337763,0.00021862,2]
[374609602,1753374644229,-2522.90260339,0.0002155,2]
[374609603,1753374644241,-1882.73484,0.0002155,2]
[374609604,1753374644289,-594.36255661,0.0002155,2]
[374609605,1753374644299,-1240.07662237,0.00021862,2]
[374609606,1753374644309,-655.27,0.00021862,2]
[374609607,1753374644319,-460.0,0.00021862,2]
[374609608,1753374644328,-666.35,0.00021863,2]
[374609609,1753374644338,-164.95,0.00021863,2]
[374609610,1753374644348,-460.0,0.00021863,2]
[374609611,1753374644358,-460.0,0.00021863,2]
[374609612,1753374644368,-3280.61,0.00021863,2]
[374609613,1753374644380,-460.0,0.00021863,2]
[374609614,1753374644390,-460.0,0.00021863,2]
[374609615,1753374644400,-460.0,0.00021863,2]
[374609616,1753374644410,-1520.37,0.00021864,2]
[374609617,1753374644420,-500.0,0.00021867,2]
[374609618,1753374644429,-465.0,0.00021867,2]
[374609620,1753374644439,-500.0,0.00021867,2]
[374609621,1753374644448,-151.15357884,0.00021867,2]
[374609622,1753374644458,-264.59489077,0.00021867,2]
[374609623,1753374644468,-151.0,0.00021867,2]
[374609624,1753374644477,-151.0,0.00021867,2]
[374609625,1753374644487,-151.0,0.00021867,2]
[374609626,1753374644497,-151.0,0.00021867,2]
[374609627,1753374644507,-2537.00604399,0.00021914,2]
[374609628,1753374644518,-1072.0650418,0.00021914,2]
[374609629,1753374644528,-503.42127867,0.00021917,2]
[374609630,1753374644538,-500.0,0.00021917,2]
[374609631,1753374644548,-503.90467185,0.00021917,2]
[374609632,1753374644557,-258.48309645,0.00021969,6]
[374609633,1753374644566,-413.41516852,0.0002199,2]
[374609634,1753374644578,-2923.23875,0.0002199,2]
[374609653,1753374646760,-839.52233709,0.00021863,2]
[374609654,1753374646770,-559.68155806,0.0002199,2]
[374609655,1753374646780,-10812.93035383,0.0002199,2]
[374609656,1753374646790,-500.0,0.00021991,2]
[374609657,1753374646800,-1627.10037219,0.00022,7]
[374609658,1753374646811,-1165.67,0.00022,7]
[374609659,1753374646821,-166.67,0.00022,2]
[374609660,1753374646831,-175.0,0.00022,2]
[374609661,1753374646841,-530.36982302,0.00022068,2]
[374609662,1753374646851,-4109.82056252,0.00022109,2]
[374609663,1753374646861,-460.0,0.00022134,2]
[374609664,1753374646870,-718.97,0.00022134,2]
[374609665,1753374646880,-538.83592161,0.00022134,2]
[374609666,1753374646891,-460.0,0.00022134,2]
[374609667,1753374646901,-1451.27,0.00022134,2]
[374609668,1753374646911,-575.82,0.00022134,2]
[374609669,1753374646920,-460.0,0.00022134,2]
[374609670,1753374646930,-460.0,0.00022136,2]
[374609672,1753374646940,-460.0,0.00022136,2]
[374609673,1753374646950,-2683.65,0.00022136,2]
[374609674,1753374646959,-655.27,0.00022136,2]
[374609675,1753374646968,-460.0,0.00022136,2]
[374609676,1753374646978,-460.0,0.00022137,2]
[374609677,1753374646988,-460.0,0.00022137,2]
[374609678,1753374646998,-3280.61,0.00022137,2]
[374609679,1753374647008,-460.0,0.00022137,2]
[374609680,1753374647017,-443.0,0.00022137,2]
[374609681,1753374647027,-460.0,0.00022137,2]
[374609682,1753374647036,-1520.37,0.00022138,2]
[374609683,1753374647045,-500.0,0.00022141,2]
[374609684,1753374647055,-465.0,0.00022141,2]
[374609685,1753374647064,-500.0,0.00022141,2]
[374609686,1753374647073,-151.0,0.00022141,2]
[374609687,1753374647083,-271.86983277,0.00022141,2]
[374609688,1753374647093,-258.48309645,0.00022176,6]
[374609689,1753374647102,-530.36982302,0.00022375,2]
[374609690,1753374647114,-258.48309645,0.00022383,7]
[374609691,1753374647123,-460.0,0.00022408,2]
[374609692,1753374647135,-718.97,0.00022408,2]
[374609693,1753374647145,-460.0,0.00022408,2]
[374609694,1753374647155,-1451.27,0.00022408,2]
[374609695,1753374647164,-575.82,0.00022408,2]
[374609696,1753374647174,-460.0,0.00022408,2]
[374609697,1753374647183,-460.0,0.0002241,2]
[374609698,1753374647193,-460.0,0.0002241,2]
[374609699,1753374647203,-2683.65,0.0002241,2]
[374609700,1753374647212,-655.27,0.0002241,2]
[374609701,1753374647223,-460.0,0.0002241,2]
[374609702,1753374647232,-460.0,0.00022411,2]
[374609703,1753374647242,-3280.61,0.00022411,2]
[374609704,1753374647256,-234.36308635,0.00022411,2]
[374609705,1753374647265,-460.0,0.00022411,2]
[374609706,1753374647275,-460.0,0.00022411,2]
[374609707,1753374647284,-1520.37,0.00022412,2]
[374609708,1753374647293,-500.0,0.00022415,2]
[374609709,1753374647303,-465.0,0.00022415,2]
[374609710,1753374647312,-500.0,0.00022415,2]
[374609711,1753374647323,-151.0,0.00022415,2]
[374609712,1753374647333,-39347.90620831,0.00022431,2]
[374609713,1753374647342,-1623.42,0.00022465,2]
[374609714,1753374647351,-262617.13373376,0.0002249,7]
[374609715,1753374647362,-214.7213231,0.0002249,7]
[374609716,1753374647371,-2202.08095897,0.000225,7]
[374609717,1753374647390,-1726.75904103,0.000225,7]
[374609718,1753374647399,-166.67,0.000225,2]
[374609719,1753374647408,-1000.0,0.00022539,2]
[374609720,1753374647418,-258.48309645,0.0002259,7]
[374609721,1753374647427,-245.39646125,0.000226,4]
[374609722,1753374647437,-460.0,0.00022682,2]
[374609723,1753374647447,-718.97,0.00022682,2]
[374609724,1753374647457,-460.0,0.00022682,2]
[374609725,1753374647466,-1451.27,0.00022682,2]
[374609726,1753374647475,-540.29357126,0.00022682,2]
[374609727,1753374649134,-35.52642874,0.00022682,2]
[374609728,1753374649144,-460.0,0.00022682,2]
[374609729,1753374649154,-530.36982302,0.00022683,2]
[374609730,1753374649165,-460.0,0.00022684,2]
[374609731,1753374649175,-2683.65,0.00022684,2]
[374609732,1753374649185,-655.27,0.00022684,2]
[374609733,1753374649195,-460.0,0.00022684,2]
[374609734,1753374649205,-460.0,0.00022685,2]
[374609735,1753374649215,-3280.61,0.00022685,2]
[374609736,1753374649224,-460.0,0.00022685,2]
[374609737,1753374649234,-460.0,0.00022685,2]
[374609738,1753374649243,-1520.37,0.00022686,2]
[374609739,1753374649253,-584.06955468,0.00022689,2]
[374609740,1753374649263,-465.0,0.00022689,2]
[374609741,1753374649274,-500.0,0.00022689,2]
[374609742,1753374649285,-517.02,0.00022791,7]
[374609743,1753374649296,-778.63,0.00022796,3]
[374609744,1753374649306,-258.48309645,0.00022797,7]
[374609745,1753374649316,-641.21,0.000228,7]
[374609746,1753374649326,-164.2445456,0.00022864,2]
[374609747,1753374649337,-500.0,0.00022873,2]
[374609748,1753374649347,-517.02,0.00022891,3]
[374609749,1753374649356,-778.63,0.00022896,5]
[374609750,1753374649366,-3000.0,0.000229,2]
[374609751,1753374649376,-18050.69017953,0.000229,2]
[374609752,1753374649648,-969.424676,0.000229,2]
[374609753,1753374649664,-19038.59712846,0.000229,2]
[374609754,1753374673209,2631.78670988,0.00019004,2]
[374609755,1753374673232,8379.98403432,0.00019004,2]
[374609764,1753374851624,2452.6711318,0.00019165,2]
[374609775,1753374999233,203.57692114,0.00019346,2]
[374609777,1753375093986,159.602822,0.00013699,2]
[374609778,1753375168898,17184.14912506,0.0001908,2]
[374609779,1753375168923,20000.0,0.0001908,2]
[374609780,1753375168946,16116.85993924,0.0001908,2]
[374609781,1753375199656,3883.14006076,0.000198,2]
[374609782,1753375199679,1116.85993924,0.000198,2]
[374609784,1753375216351,5000.0,0.000198,2]
[374609785,1753375230695,1033.3924547,0.00018943,2]
[374609786,1753375236287,5000.0,0.000198,2]
[374609787,1753375253060,5000.0,0.000198,2]
[374609788,1753375269047,2849.74760606,0.000198,2]
[374609789,1753375269069,2150.25239394,0.000198,2]
[374609790,1753375284320,5000.0,0.000198,2]
[374609791,1753375302877,5000.0,0.000198,2]
[374609792,1753375319554,5000.0,0.000198,2]
[374609793,1753375335345,2849.74760606,0.000198,2]
[374609794,1753375335367,2150.25239394,0.000198,2]
[374609795,1753375338592,10000.0,0.00018943,2]
[374609796,1753375351927,5000.0,0.000198,2]
[374609797,1753375367868,2849.74760606,0.000198,2]
[374609798,1753375367896,2150.25239394,0.000198,2]
[374609799,1753375383793,5000.0,0.000198,2]
[374609800,1753375399099,5000.0,0.000198,2]
[374609801,1753375415443,5000.0,0.000198,2]
[374609802,1753375432406,2849.74760606,0.000198,2]
[374609803,1753375432433,2150.25239394,0.000198,2]
[374609804,1753375450049,5000.0,0.000198,2]
[374609805,1753375451662,12849.74760606,0.00018941,2]
[374609806,1753375451684,20000.0,0.00018941,2]
[374609807,1753375451705,17234.97842674,0.00018941,2]
[374609808,1753375465443,2765.02157326,0.000198,2]
[374609809,1753375472385,419.0,0.00026027,120]
[374609810,1753375547810,275.80337894,0.0001971,2]
[374609811,1753375548281,275.80337891,0.00019743,2]
[374609812,1753375551405,11068.40920783,0.00018935,2]
[374609813,1753375551427,13831.59079217,0.00018935,2]
[374609814,1753375569787,638.80033621,0.000189,2]
[374609815,1753375587659,156.4720611,0.000197,2]
[374609816,1753375591463,165.48202737,0.00019742,2]
[374609817,1753375594307,1643.64881945,0.000197,2]
[374609818,1753375605344,297.96825387,0.00019206,2]
[374609819,1753375628097,-2234.97842674,0.000198,2]
[374609820,1753375628119,-169.80964638,0.00019842,2]
[374609821,1753375628140,-165.48202734,0.00019842,2]
[374609822,1753375628161,-630.1917914,0.0001991,2]
[374609823,1753375630527,-729.50513426,0.0001991,2]
[374609824,1753375631126,165.48202734,0.00019717,2]
[374609825,1753375632450,3100.55568249,0.0001975,2]
[374609826,1753375632472,1899.44431751,0.0001975,2]
[374609827,1753375645294,-165.48202734,0.0001978,2]
[374609828,1753375645313,-165.48202734,0.00019842,2]
[374609829,1753375645331,-496.77926948,0.0001991,2]
[374609830,1753375648221,2731.0,0.0001975,2]
[374609831,1753375653793,250.0,0.00018677,2]
[374609832,1753375708337,176.06238602,0.00019705,2]
[374610244,1753375837851,-169.80964635,0.00019842,2]
[374610298,1753375838364,-348.04102386,0.0001991,2]
[374610300,1753375838374,-286.05061867,0.0001992,2]
[374610302,1753375838385,-1200.0,0.00019939,2]
[374610304,1753375838394,-341.93751706,0.0001994,2]
[374610306,1753375838406,-858.06248294,0.0001994,2]
[374610308,1753375838415,-300.0,0.0001994,2]
[374610310,1753375838424,-194.0,0.0001994,2]
[374610312,1753375838434,-180.0,0.0001994,2]
[374610314,1753375838443,-351.65767758,0.0001994,2]
[374610316,1753375838452,-472.55704682,0.00019941,2]
[374610318,1753375838461,-460.0,0.00019941,2]
[374610320,1753375838471,-460.0,0.00019941,2]
[374610322,1753375838481,-212.81387329,0.00019941,2]
[374610324,1753375838491,-460.0,0.00019941,2]
[374610326,1753375838500,-460.0,0.00019941,2]
[374610328,1753375838510,-460.0,0.00019941,2]
[374610330,1753375838519,-460.0,0.00019941,2]
[374610332,1753375838528,-455.0,0.00019941,2]
[374610334,1753375838538,-461.3665911,0.00019941,2]
[374610336,1753375838547,-460.0,0.00019941,2]
[374610338,1753375838556,-460.0,0.00019941,2]
[374610340,1753375838566,-202.97774291,0.00019941,2]
[374610342,1753375838575,-460.0,0.00019941,2]
[374610344,1753375838585,-460.0,0.00019941,2]
[374610346,1753375838595,-460.0,0.00019941,2]
[374610348,1753375838604,-460.0,0.00019941,2]
[374610350,1753375838614,-796.21,0.00019941,2]
[374610352,1753375838623,-2433.99,0.00019941,2]
[374610354,1753375838632,-460.0,0.00019941,2]
[374610356,1753375838641,-460.9107218,0.00019941,2]
[374610358,1753375838651,-460.0,0.00019941,2]
[374610360,1753375838660,-460.0,0.00019941,2]
[374610362,1753375838670,-460.0,0.00019941,2]
[374610364,1753375838679,-461.1341943,0.00019941,2]
[374610366,1753375838689,-460.0,0.00019941,2]
[374610367,1753375838698,-460.0,0.00019941,2]
[374610370,1753375838708,-460.0,0.00019941,2]
[374610372,1753375838718,-1641.33,0.00019941,2]
[374610374,1753375838727,-713.45,0.00019941,2]
[374610376,1753375838737,-460.0,0.00019941,2]
[374610378,1753375838747,-461.03584063,0.00019941,2]
[374610380,1753375838757,-867.09,0.00019941,2]
[374610381,1753375838766,-417.52800515,0.00019941,2]
[374610383,1753375838775,-460.0,0.00019941,2]
[374610385,1753375838785,-460.0,0.00019941,2]
[374610388,1753375838794,-460.0,0.00019941,2]
[374610389,1753375838804,-4576.1646024,0.00019941,2]
[374610391,1753375838813,-462.58204668,0.00019942,2]
[374610393,1753375838822,-460.0,0.00019942,2]
[374610395,1753375838832,-460.0,0.00019942,2]